fUST/lending_fUST_20240524
["ID","MTS","AMOUNT","RATE_DAILY","PERIOD"]
[327849325,1716558545125,-41997.82536246,0.00018973,2]
[327849326,1716558545147,-3030.51153524,0.00018974,2]
[327849327,1716558548251,-56224.20161771,0.00018974,2]
[327849328,1716558548275,-5958.67016838,0.00018979,2]
[327849329,1716558548297,-269.49528319,0.00019178,2]
[327849330,1716558548489,-500.0,0.00019178,2]
[327849331,1716558548510,-226.34092529,0.00019178,2]
[327849332,1716558548533,-500.0,0.00019178,2]
[327849333,1716558548562,-500.0,0.00019178,2]
[327849334,1716558548589,-500.0,0.00019178,2]
[327849335,1716558548613,-500.0,0.00019178,2]
[327849336,1716558548635,-235.0,0.00019178,2]
[327849337,1716558548662,-500.0,0.00019178,2]
[327849338,1716558548683,-500.0,0.00019178,2]
[327849339,1716558548705,-500.0,0.00019178,2]
[327849340,1716558548732,-470.01689295,0.00019178,2]
[327849341,1716558548754,-246.77453074,0.00019178,2]
[327849342,1716558548775,-458.20739814,0.00019178,2]
[327849343,1716558548801,-500.0,0.00019178,2]
[327849344,1716558548829,-500.0,0.00019178,2]
[327849345,1716558548856,-500.0,0.00019178,2]
[327849346,1716558548884,-500.0,0.00019178,2]
[327849347,1716558548911,-500.0,0.00019178,2]
[327849348,1716558548938,-500.0,0.00019178,2]
[327849349,1716558548963,-500.0,0.00019178,2]
[327849350,1716558548988,-500.0,0.00019178,2]
[327849351,1716558549013,-500.0,0.00019178,2]
[327849352,1716558549039,-500.0,0.00019178,2]
[327849353,1716558549067,-500.0,0.00019178,2]
[327849354,1716558549096,-500.0,0.00019178,2]
[327849355,1716558549126,-500.0,0.00019178,2]
[327849356,1716558549154,-500.0,0.00019178,2]
[327849357,1716558549183,-500.0,0.00019178,2]
[327849358,1716558549211,-500.0,0.00019178,2]
[327849359,1716558549239,-500.0,0.00019178,2]
[327849360,1716558549267,-500.0,0.00019178,2]
[327849361,1716558549289,-173.7338918,0.00019178,2]
[327849362,1716558549316,-500.0,0.00019178,2]
[327849363,1716558549343,-500.0,0.00019178,2]
[327849364,1716558549373,-500.0,0.00019178,2]
[327849365,1716558549402,-250.0,0.00019178,2]
[327849366,1716558549424,-171.266385,0.00019178,2]
[327849367,1716558549449,-7355.833872,0.00019935,2]
[327849368,1716558555136,-189.36353741,0.00019996,2]
[327849369,1716558555158,-175.59818247,0.00019996,2]
[327849370,1716558555183,-174.07730858,0.00019997,2]
[327849371,1716558555210,-524.65873175,0.00019997,2]
[327849372,1716558555233,-180.01941178,0.00019997,2]
[327849373,1716558555255,-174.67407508,0.00019998,2]
[327849374,1716558555277,-316.42483883,0.0002,2]
[327849375,1716558555299,-23826.27164229,0.0002,2]
[327849376,1716558555320,-295.32834245,0.0002,2]
[327849377,1716558555342,-365.1890674,0.0002,2]
[327849378,1716558555367,-7177.15659591,0.0002,2]
[327849379,1716558558623,154.82968734,0.00019999,2]
[327849380,1716558575188,77.44649246,0.000189,2]
[327849381,1716558575211,72.55350754,0.000189,2]
[327849386,1716558613272,174.25461098,0.00019861,2]
[327849387,1716558613293,59.7477768,0.00019861,2]
[327849446,1716558633733,-181.08892415,0.0002025,2]
[327849448,1716558633743,-299.55918211,0.0002081,2]
[327849450,1716558633752,-163.26944534,0.0002081,2]
[327849452,1716558633762,-156.85628234,0.00020908,2]
[327849453,1716558633771,-38808.70006646,0.00020909,2]
[327849462,1716558639105,-413.4705,0.00020909,2]
[327849493,1716558644087,-2775.654796,0.00020909,2]
[327849494,1716558644096,-155.45791053,0.0002091,2]
[327849495,1716558644106,-155.46521874,0.0002091,2]
[327849496,1716558644116,-155.27339031,0.0002091,2]
[327849497,1716558644126,-200.0,0.0002091,2]
[327849498,1716558644136,-156.56985226,0.0002091,2]
[327849499,1716558644145,-190.8626778,0.0002091,2]
[327849500,1716558644154,-842.30792511,0.0002091,2]
[327849501,1716558644164,-307.68071387,0.0002091,2]
[327849502,1716558644174,-2119.95126665,0.0002091,2]
[327849503,1716558644185,-181.50612434,0.0002091,2]
[327849504,1716558644197,-946.38470941,0.0002091,2]
[327849505,1716558644206,-10455.83518954,0.0002091,2]
[327849506,1716558644216,-657.03917588,0.0002091,2]
[327849507,1716558644226,-189.7425429,0.0002091,2]
[327849508,1716558644235,-1904.92360209,0.00020911,2]
[327849509,1716558644245,-896.31216814,0.00020912,2]
[327849510,1716558644254,-783.32549456,0.00020913,2]
[327849511,1716558644264,-993.12981355,0.00021698,2]
[327849512,1716558644275,-153.0,0.000217,2]
[327849515,1716558644285,-299.55918207,0.00021747,2]
[327849518,1716558644297,-4226.56801723,0.00021755,2]
[327849521,1716558644307,-417.57091557,0.00021798,2]
[327849524,1716558644317,-500.0,0.00021917,2]
[327849528,1716558644328,-315.0,0.00021917,2]
[327849531,1716558644339,-500.0,0.00021917,2]
[327849532,1716558644348,-500.0,0.00021917,2]
[327849533,1716558644358,-237.46221944,0.00021917,2]
[327849534,1716558644369,-500.0,0.00021917,2]
[327849535,1716558644379,-500.0,0.00021917,2]
[327849536,1716558644390,-500.0,0.00021917,2]
[327849537,1716558644400,-500.0,0.00021917,2]
[327849538,1716558644410,-566.00506788,0.00021917,2]
[327849539,1716558644420,-306.0,0.00021918,2]
[327849540,1716558644430,-153.0,0.00021918,2]
[327849541,1716558644443,-159.73051569,0.00022,2]
[327849542,1716558644454,-1398.08035328,0.00022,2]
[327849543,1716558644463,-156.36220121,0.00022,2]
[327849544,1716558644474,-153.0,0.00022192,2]
[327849545,1716558644483,-153.0,0.00022192,2]
[327849546,1716558644493,-306.0,0.00022192,2]
[327849547,1716558644504,-153.0,0.00022192,2]
[327849548,1716558644514,-153.0,0.00022192,2]
[327849549,1716558644524,-153.0,0.00022192,2]
[327849550,1716558644534,-153.0,0.00022192,2]
[327849551,1716558644547,-172.4475907,0.00022192,2]
[327849552,1716558644558,-47.71429183,0.00022232,2]
[327849553,1716558644648,-212.22643081,0.00022232,2]
[327849568,1716558646161,-362.32685652,0.00022232,2]
[327849569,1716558646171,-154.575736,0.00022466,2]
[327849570,1716558646180,-15772.42159662,0.0002255,2]
[327849571,1716558646191,-151.0,0.0002255,2]
[327849572,1716558646200,-299.55918207,0.00022684,2]
[327849573,1716558646210,-153.0,0.0002274,2]
[327849574,1716558646220,-3000.0,0.00023,2]
[327849575,1716558646229,-150.0,0.00023,2]
[327849576,1716558646238,-620.11337896,0.00023343,2]
[327849577,1716558646248,-169.5083448,0.00023355,2]
[327849578,1716558646257,-299.55918207,0.0002362,2]
[327849579,1716558646266,-1497.60228617,0.000238,11]
[327849580,1716558646276,-2000.0,0.000238,4]
[327849581,1716558646287,-2000.0,0.000238,5]
[327849582,1716558646296,-201.107596,0.000238,2]
[327849583,1716558646306,-151.0,0.0002386,5]
[327849585,1716558646316,-7404.45101395,0.000239,2]
[327849587,1716558646326,-151.0,0.00023964,5]
[327849589,1716558646335,-150.0,0.00023987,2]
[327849592,1716558646345,-238.956,0.00023987,2]
[327849595,1716558646355,-6129.711672,0.00024,2]
[327849597,1716558646364,-1000.0,0.00024,2]
[327849599,1716558646374,-4384.56471128,0.00024,2]
[327849600,1716558646383,-608.96108434,0.00024,2]
[327849601,1716558646393,-151.0,0.00024067,5]
[327849602,1716558646402,-153.0,0.0002411,2]
[327849603,1716558646412,-153.0,0.0002411,2]
[327849604,1716558646421,-153.0,0.0002411,2]
[327849605,1716558646431,-153.0,0.0002411,2]
[327849606,1716558646442,-153.0,0.0002411,2]
[327849607,1716558646451,-151.0,0.00024171,5]
[327849608,1716558646460,-153.0,0.00024177,2]
[327849609,1716558646470,-153.0,0.00024177,2]
[327849610,1716558646479,-151.0,0.000242,2]
[327849611,1716558646489,-151.0,0.00024275,5]
[327849612,1716558646498,-151.0,0.00024378,5]
[327849613,1716558646507,-514.557451,0.00024384,2]
[327849614,1716558646517,-1802.06381241,0.0002445,2]
[327849615,1716558646531,-268.24253826,0.0002445,2]
[327849616,1716558646541,-2000.0,0.0002445,2]
[327849617,1716558646550,-166.666666,0.00024482,2]
[327849618,1716558646559,-2008.0,0.000245,4]
[327849619,1716558646570,-290.79227556,0.000245,2]
[327849620,1716558646584,-1000.0,0.000245,2]
[327849621,1716558646594,-620.00566895,0.00024511,2]
[327849622,1716558646757,-22933.08104902,0.00024515,3]
[327849623,1716558646768,-7465.78792848,0.0002455,3]
[327849624,1716558741194,150.81901718,0.00024233,30]
[327849625,1716558741260,150.81901718,0.00023748,120]
[327849642,1716559073330,3018.98039933,0.000202,3]
[327849644,1716559163318,4000.0,0.000186,2]
[327849645,1716559341533,150.81901718,0.00024372,30]
[327849646,1716559341780,150.81901718,0.00023884,120]
[327849647,1716559363278,1953.43248701,0.00027,30]
[327849649,1716559541504,4797.361202,9.999e-05,2]
[327849650,1716559541536,7149.66196716,9.999e-05,2]
[327849655,1716559627460,500.0,0.00027,30]
[327849656,1716559632187,-166.891987,0.00019612,2]
[327849657,1716559632214,-10845.29080053,0.00019999,2]
[327849660,1716559743864,500.0,0.00027,30]
[327849661,1716559750131,-164.28156596,0.00019899,2]
[327849662,1716559750152,-163.26944534,0.000199,2]
[327849664,1716559764112,-24117.08937126,0.00019999,2]
[327849665,1716559764135,-13829.21659113,0.00019999,2]
[327849666,1716559764156,-25429.45285364,0.0002,2]
[327849667,1716559764176,-373.0,0.0002,2]
[327849669,1716559781748,150.0,0.000189,2]
[327849675,1716559792005,103.54654276,0.00020048,2]
[327849676,1716559819511,656.00053528,0.000199,2]
[327849719,1716559834293,-349.45345724,0.00020048,2]
[327849722,1716559834303,-36489.93333816,0.00020048,2]
[327849770,1716559839910,-87429.92746901,0.00020048,2]
[327849771,1716559839920,-181.08892415,0.0002025,2]
[327849772,1716559839931,-585.0,0.00020363,2]
[327849773,1716559839940,-286.79583156,0.00020812,2]
[327849774,1716559839950,-3112.17828844,0.00020909,2]
[327849775,1716559839959,-34962.38017179,0.00020909,2]
[327849776,1716559839968,-615.01500149,0.0002091,2]
[327849777,1716559839978,-155.38233873,0.0002091,2]
[327849778,1716559839992,-500.0,0.0002091,2]
[327849779,1716559840002,-231.05268876,0.0002091,2]
[327849780,1716559840011,-504.1030549,0.0002091,2]
[327849781,1716559840021,-500.0,0.0002091,2]
[327849782,1716559840031,-500.0,0.0002091,2]
[327849783,1716559840041,-500.0,0.0002091,2]
[327849784,1716559840050,-510.16600082,0.0002091,2]
[327849785,1716559840062,-192.71443831,0.0002091,2]
[327849786,1716559840071,-500.0,0.0002091,2]
[327849787,1716559840081,-500.0,0.0002091,2]
[327849788,1716559840090,-500.0,0.0002091,2]
[327849789,1716559840101,-500.0,0.0002091,2]
[327849790,1716559840111,-500.0,0.0002091,2]
[327849791,1716559840120,-500.0,0.0002091,2]
[327849792,1716559840130,-500.0,0.0002091,2]
[327849793,1716559840139,-500.0,0.0002091,2]
[327849794,1716559840148,-500.0,0.0002091,2]
[327849795,1716559840158,-500.0,0.0002091,2]
[327849796,1716559840167,-500.0,0.0002091,2]
[327849797,1716559840176,-500.0,0.0002091,2]
[327849798,1716559840186,-500.0,0.0002091,2]
[327849799,1716559840195,-500.0,0.0002091,2]
[327849800,1716559840204,-500.0,0.0002091,2]
[327849801,1716559840214,-252.76179068,0.0002091,2]
[327849802,1716559840224,-500.0,0.0002091,2]
[327849803,1716559840233,-525.82853721,0.0002091,2]
[327849804,1716559840242,-439.64080165,0.0002091,2]
[327849805,1716559840252,-501.84521952,0.0002091,2]
[327849806,1716559840261,-253.50295969,0.0002091,2]
[327849807,1716559840271,-660.40973469,0.00020911,2]
[327849808,1716559840280,-53176.72893902,0.00020911,2]
[327849809,1716559840290,-444.34829777,0.00020912,2]
[327849810,1716559840299,-3996.94049975,0.00020912,2]
[327849811,1716559840310,-2033.07644531,0.00020912,2]
[327849812,1716559840320,-1450.9824822,0.00020912,10]
[327849813,1716559840330,-506.81565989,0.00021,2]
[327849814,1716559840339,-286.79583156,0.00021722,2]
[327849815,1716559840351,-2728.52725566,0.00021917,2]
[327849816,1716559840361,-166.666666,0.00021918,2]
[327849817,1716559840371,-4853.726993,0.00021918,2]
[327849818,1716559840380,-748.80114308,0.00022,11]
[327849819,1716559840393,-160.48336936,0.00022,2]
[327849820,1716559840403,-11407.93918444,0.00022,2]
[327849821,1716559840413,-166.666666,0.00022431,2]
[327849822,1716559840422,-286.79583156,0.00022631,2]
[327849823,1716559840432,-166.666666,0.00022944,2]
[327849824,1716559840442,-3034.58188044,0.00023,2]
[327849825,1716559840451,-166.666666,0.00023456,2]
[327849826,1716559840462,-286.79583156,0.00023541,2]
[327849827,1716559840471,-166.666666,0.00023969,2]
[327849828,1716559840482,-153.0,0.0002411,2]
[327849829,1716559840492,-153.0,0.0002411,2]
[327849830,1716559840502,-153.0,0.0002411,2]
[327849831,1716559840513,-153.0,0.0002411,2]
[327849832,1716559840522,-153.0,0.0002411,2]
[327849833,1716559840532,-307.3744982,0.0002411,2]
[327849836,1716559840542,-153.0,0.0002411,2]
[327849839,1716559840552,-153.0,0.0002411,2]
[327849841,1716559840562,-153.0,0.0002411,2]
[327849843,1716559840572,-153.0,0.0002411,2]
[327849845,1716559840581,-204.6274004,0.0002411,2]
[327849846,1716559840590,-204.6274004,0.0002411,2]
[327849847,1716559840602,-153.0,0.0002411,2]
[327849848,1716559840612,-153.0,0.0002411,2]
[327849849,1716559840621,-204.6274004,0.0002411,2]
[327849850,1716559840632,-204.6274004,0.0002411,2]
[327849851,1716559840641,-153.0,0.0002411,2]
[327849852,1716559840652,-153.0,0.0002411,2]
[327849853,1716559840662,-204.6274004,0.0002411,2]
[327849854,1716559840671,-153.0,0.0002411,2]
[327849855,1716559840681,-153.0,0.0002411,2]
[327849856,1716559840691,-204.6274004,0.0002411,2]
[327849857,1716559840701,-153.0,0.0002411,2]
[327849858,1716559840710,-153.0,0.0002411,2]
[327849859,1716559840720,-204.6274004,0.0002411,2]
[327849860,1716559840730,-204.6274004,0.0002411,2]
[327849861,1716559840740,-153.0,0.0002411,2]
[327849862,1716559840750,-204.6274004,0.0002411,2]
[327849864,1716559840760,-153.0,0.0002411,2]
[327849866,1716559840769,-204.6274004,0.0002411,2]
[327849867,1716559840778,-153.0,0.0002411,2]
[327849868,1716559840787,-153.0,0.0002411,2]
[327849869,1716559840796,-204.6274004,0.0002411,2]
[327849870,1716559840805,-204.6274004,0.0002411,2]
[327849871,1716559840814,-153.0,0.0002411,2]
[327849872,1716559840824,-446.2775557,0.0002411,2]
[327849873,1716559840834,-417.57091557,0.00024149,2]
[327849874,1716559840844,-4226.56801723,0.00024237,2]
[327849875,1716559840855,-152.002,0.00024246,2]
[327849876,1716559840864,-150.0,0.00024246,2]
[327849877,1716559840874,-1480.77025361,0.00024265,2]
[327849878,1716559840883,-165.9412471,0.00024384,2]
[327849879,1716559840893,-488.829578,0.00024384,2]
[327849880,1716559840903,-2000.0,0.00024447,2]
[327849881,1716559840912,-286.79583156,0.0002445,2]
[327849882,1716559840921,-166.666666,0.00024482,2]
[327849883,1716559840931,-281.0,0.000245,2]
[327849884,1716559840940,-45712.69763197,0.00024547,2]
[327849885,1716559840958,-7341.15827718,0.00024547,2]
[327849886,1716559840967,-153.0,0.00024548,2]
[327849887,1716559840977,-27989.18550274,0.00024549,2]
[327849888,1716559840988,-34245.11451728,0.0002455,11]
[327849889,1716559841000,-30883.21501976,0.0002455,3]
[327849905,1716559843277,-5111.20919482,0.0002455,3]
[327849907,1716559843286,-3632.73611165,0.0002455,2]
[327849910,1716559843296,-250.860922,0.0002455,2]
[327849911,1716559843305,-151.0,0.0002455,2]
[327849912,1716559843315,-151.0,0.0002455,2]
[327849913,1716559843324,-151.0,0.0002455,2]
[327849914,1716559843334,-151.0,0.0002455,2]
[327849915,1716559843343,-25836.27206383,0.000246,2]
[327849916,1716559843836,-1334.01088799,0.000246,2]
[327849920,1716559843848,-57729.29292924,0.000246,2]
[327850013,1716559847950,-187.943384,0.0002455,2]
[327850015,1716559847960,-4818.99290197,0.000246,2]
[327853469,1716559883964,150.83408251,0.00024783,30]
[327859677,1716559995877,1450.9824822,0.00020046,10]
[327859678,1716560066285,1850.33803284,0.000181,2]
[327859680,1716560075841,19987.97800184,0.00018,2]
[327859684,1716560850099,-1704.0199993,0.00019047,2]
[327859685,1716560850118,-171.266385,0.00019178,2]
[327859686,1716560850141,-234.36170377,0.00019948,2]
[327859687,1716560850160,-181.08892415,0.0002,2]
[327859688,1716560850180,-2803.79718888,0.00020045,2]
[327859689,1716560851118,-1193.14331087,0.00020045,2]
[327859690,1716560851139,-444.34829777,0.00020045,2]
[327859691,1716560851158,-522.84603088,0.00020045,2]
[327859692,1716560851179,-2284.41959708,0.00020045,2]
[327859693,1716560854152,-160.60614219,0.00020045,2]
[327859694,1716560960135,-181.08892415,0.0002,2]
[327859695,1716560960157,-234.89151172,0.00020045,2]
[327859696,1716560960178,-2033.07644531,0.00020046,2]
[327859697,1716560960366,-26675.86709485,0.00020047,2]
[327859698,1716560960391,-1322.52248456,0.00020048,2]
[327859699,1716560981674,181.08892415,0.0002,2]
[327859700,1716560997683,289.18615144,0.0002,2]
[327859701,1716561019688,181.08892415,0.0002,2]
[327859748,1716561035695,-3118.0382419,0.00020912,2]
[327859879,1716561038613,-2166.417783,0.00020912,2]
[327859882,1716561039011,-1240.83895029,0.00020912,2]
[327859883,1716561039022,-488.15715349,0.00020912,2]
[327859884,1716561039033,-200.35712674,0.00020912,2]
[327859885,1716561039043,-5646.00094722,0.00020912,2]
[327859886,1716561039055,-334.82724779,0.00020913,2]
[327859887,1716561039066,-506.81565989,0.00021,2]
[327859888,1716561039077,-500.0,0.00021917,2]
[327859889,1716561039088,-500.0,0.00021917,2]
[327859890,1716561039098,-500.0,0.00021917,2]
[327859891,1716561039110,-500.0,0.00021917,2]
[327859892,1716561039121,-500.0,0.00021917,2]
[327859893,1716561039131,-500.0,0.00021917,2]
[327859894,1716561039142,-500.0,0.00021917,2]
[327859895,1716561039154,-500.0,0.00021917,2]
[327859896,1716561039165,-500.0,0.00021917,2]
[327859897,1716561039176,-500.0,0.00021917,2]
[327859898,1716561039187,-500.0,0.00021917,2]
[327859899,1716561039197,-500.0,0.00021917,2]
[327859900,1716561039207,-500.0,0.00021917,2]
[327859901,1716561039218,-500.0,0.00021917,2]
[327859902,1716561039229,-500.0,0.00021917,2]
[327859903,1716561039240,-500.0,0.00021917,2]
[327859904,1716561039250,-500.0,0.00021917,2]
[327859905,1716561039260,-500.0,0.00021917,2]
[327859906,1716561039271,-608.89434535,0.00021917,2]
[327859907,1716561039282,-500.0,0.00021917,2]
[327859908,1716561039292,-4853.726993,0.00021918,2]
[327859909,1716561039302,-166.666666,0.00021918,2]
[327859910,1716561039312,-11407.93918444,0.00022,2]
[327859911,1716561039323,-160.48336936,0.00022,2]
[327859912,1716561039333,-166.666666,0.00022431,2]
[327859913,1716561039343,-166.666666,0.00022944,2]
[327859914,1716561039356,-371.19832465,0.00023222,2]
[327859915,1716561039367,-166.666666,0.00023456,2]
[327859916,1716561039377,-1000.0,0.000235,2]
[327859917,1716561039387,-151.0,0.00023771,5]
[327859918,1716561039400,-620.00028344,0.00023814,2]
[327859919,1716561039413,-153.0,0.0002389,2]
[327859920,1716561039422,-229.43666528,0.000239,2]
[327859921,1716561039432,-166.666666,0.00023969,2]
[327859922,1716561039443,-500.0,0.00023999,2]
[327859923,1716561039453,-357.81433149,0.00023999,2]
[327859924,1716561039464,-500.0,0.00023999,2]
[327859925,1716561039475,-500.0,0.00023999,2]
[327859926,1716561039485,-500.0,0.00023999,2]
[327859927,1716561039497,-353.04980024,0.00023999,2]
[327859928,1716561039509,-500.0,0.00023999,2]
[327859929,1716561039519,-319.86009585,0.00023999,2]
[327859930,1716561039531,-8303.0,0.00024,2]
[327859931,1716561039542,-20021.49782803,0.00024,2]
[327859932,1716561039553,-1000.0,0.00024,2]
[327859933,1716561039565,-229.43666524,0.00024064,2]
[327859934,1716561039575,-748.80114308,0.000241,11]
[327859935,1716561039587,-40056.52377976,0.000241,5]
[327859936,1716561039598,-373.1924512,0.0002411,2]
[327859937,1716561039609,-291.6248309,0.0002411,2]
[327859938,1716561039619,-291.6248309,0.0002411,2]
[327859939,1716561039628,-291.6248309,0.0002411,2]
[327859940,1716561039638,-291.6248309,0.0002411,2]
[327859941,1716561039651,-291.6248309,0.0002411,2]
[327859942,1716561039661,-291.6248309,0.0002411,2]
[327859943,1716561039671,-291.6248309,0.0002411,2]
[327859944,1716561039680,-229.43666524,0.00024229,2]
[327859945,1716561039689,-150.0,0.0002424,2]
[327859946,1716561039697,-4226.56801723,0.00024255,2]
[327859947,1716561039707,-417.57091557,0.00024317,2]
[327859948,1716561039718,-1480.77025361,0.00024353,2]
[327859949,1716561039728,-492.186739,0.00024384,2]
[327859950,1716561039739,-160.632071,0.00024384,2]
[327859951,1716561039750,-229.43666524,0.00024393,2]
[327859952,1716561039761,-166.666666,0.00024482,2]
[327859953,1716561039771,-1000.0,0.000245,2]
[327859954,1716561039782,-2000.0,0.00024557,2]
[327859955,1716561039793,-229.43666524,0.00024557,2]
[327859956,1716561039802,-26067.71390045,0.000246,2]
[327859992,1716561044413,-3786.50723705,0.00024241,2]
[327859994,1716561044425,-352.00727982,0.00024241,2]
[327859995,1716561044435,-6058.88878673,0.000246,2]
[327859996,1716561044448,-598.07452453,0.000246,2]
[327859997,1716561044460,-1281.3189705,0.000246,2]
[327859998,1716561044471,-9903.18378,0.000246,2]
[327859999,1716561044669,-8217.168,0.000246,2]
[327860031,1716561049654,-369.57369039,0.00023986,2]
[327860032,1716561049666,-369.57369039,0.00024336,2]
[327860033,1716561049676,-37508.43751476,0.000246,2]
[327860034,1716561049686,-281.0,0.000246,2]
[327860035,1716561049695,-342.49860448,0.00024626,2]
[327860036,1716561049705,-2728.52725566,0.00024656,2]
[327860037,1716561049714,-488.72195212,0.00024657,2]
[327860038,1716561049724,-500.0,0.00024657,2]
[327860039,1716561049734,-602.7,0.00024657,2]
[327860040,1716561049743,-321.99348109,0.00024657,2]
[327860041,1716561049754,-500.0,0.00024657,2]
[327860042,1716561049763,-500.0,0.00024657,2]
[327860043,1716561049772,-500.0,0.00024657,2]
[327860044,1716561049782,-500.0,0.00024657,2]
[327860045,1716561049792,-500.0,0.00024657,2]
[327860046,1716561049801,-500.0,0.00024657,2]
[327860047,1716561049812,-330.0,0.00024657,2]
[327860048,1716561049821,-1210.57,0.00024657,2]
[327860049,1716561049830,-687.89,0.00024657,2]
[327860050,1716561049840,-500.0,0.00024657,2]
[327860051,1716561049849,-500.0,0.00024657,2]
[327860052,1716561049858,-500.0,0.00024657,2]
[327860053,1716561049868,-793.23,0.00024657,2]
[327860054,1716561049878,-500.0,0.00024657,2]
[327860055,1716561049887,-500.0,0.00024657,2]
[327860056,1716561049897,-500.0,0.00024657,2]
[327860057,1716561049909,-500.0,0.00024657,2]
[327860058,1716561049918,-534.43,0.00024657,2]
[327860059,1716561049927,-500.0,0.00024657,2]
[327860060,1716561049937,-337.86567568,0.00024657,2]
[327860061,1716561049946,-500.0,0.00024657,2]
[327860062,1716561049955,-500.0,0.00024657,2]
[327860063,1716561049965,-534.7,0.00024657,2]
[327860064,1716561049974,-500.0,0.00024657,2]
[327860065,1716561049984,-500.0,0.00024657,2]
[327860066,1716561049994,-500.0,0.00024657,2]
[327860067,1716561050003,-500.0,0.00024657,2]
[327860068,1716561050013,-1010.14,0.00024657,2]
[327860069,1716561050022,-500.0,0.00024657,2]
[327860070,1716561050032,-188.29088582,0.00024657,2]
[327860071,1716561050042,-824.69,0.00024657,2]
[327860072,1716561050051,-737.89,0.00024657,2]
[327860073,1716561050060,-500.0,0.00024657,2]
[327860074,1716561050070,-500.0,0.00024657,2]
[327860075,1716561050080,-500.0,0.00024657,2]
[327860076,1716561050090,-182.19959139,0.00024657,2]
[327860078,1716561061074,150.81901718,0.00025525,30]
[327860079,1716561061160,150.81901718,0.00025014,120]
[327860081,1716561208242,392.26053863,9.999e-05,2]
[327860082,1716561235640,175.72514253,9.999e-05,2]
[327860083,1716561262031,3633.2531206,9.999e-05,2]
[327860084,1716561276035,810.7831964,9.999e-05,2]
[327860085,1716561276071,2129.52518797,9.999e-05,2]
[327860087,1716561339787,154.82968734,9.999e-05,2]
[327860088,1716561339926,658.59418011,9.999e-05,2]
[327860090,1716561519172,1141.33801335,0.000161,2]
[327860092,1716561819098,973.57933337,0.000161,2]
[327860093,1716562045121,-896.31216814,0.00018999,2]
[327860094,1716562045141,-155.50462427,0.00019,2]
[327860095,1716562045160,-167.417719,0.00019329,2]
[327860096,1716562045180,-254.4842108,0.00019885,2]
[327860097,1716562045199,-373.93136183,0.00020809,2]
[327860098,1716562045218,-21.78768255,0.0002081,2]
[327860099,1716562049104,-207.64898273,0.0002081,2]
[327860100,1716562049125,-970.43559741,0.00020908,2]
[327860101,1716562052088,-14747.77032752,0.00020908,2]
[327860103,1716562188893,171.266385,0.00019635,2]
[327860104,1716562194699,36.71551719,0.000189,2]
[327860105,1716562194721,213.36655761,0.000189,2]
[327860106,1716562194743,164.16497373,0.000189,2]
[327860165,1716562232974,-59.7477768,0.00020809,2]
[327860263,1716562240993,-836.56439134,0.00020809,2]
[327860264,1716562241003,-327.18994161,0.0002081,2]
[327860265,1716562241013,-183.5493322,0.00020812,2]
[327860266,1716562241023,-11867.26278404,0.00020908,2]
[327860267,1716562241130,-232.2761798,0.00020908,2]
[327860268,1716562241143,-6886.17180479,0.00020908,2]
[327860269,1716562241152,-610.15705384,0.00020909,2]
[327860270,1716562241164,-3538.40591291,0.00020909,2]
[327860271,1716562241174,-500.0,0.00020911,2]
[327860272,1716562241184,-500.0,0.00020911,2]
[327860273,1716562241194,-500.0,0.00020911,2]
[327860274,1716562241204,-500.0,0.00020911,2]
[327860275,1716562241214,-500.0,0.00020911,2]
[327860276,1716562241223,-500.0,0.00020911,2]
[327860277,1716562241232,-500.0,0.00020911,2]
[327860278,1716562241242,-500.0,0.00020911,2]